bitfinex/quotes_SOLUSD_20240811
["timestamp","ask_amount","ask_price","bid_price","bid_amount"]
[1723385812697,0.37647,151.33,151.26,23.51]
[1723385812880,45.0,151.34,151.28,23.51]
[1723385813682,45.12549,151.35,151.28,23.51]
[1723385813889,0.12549,151.34,151.28,23.51]
[1723385815278,45.12549,151.35,151.28,23.51]
[1723385815594,0.25098,151.35,151.28,23.51]
[1723385815801,0.12549,151.34,151.26,23.51]
[1723385815964,51.78008215,151.34,151.24,23.51]
[1723385816372,45.50196,151.34,151.24,23.51]
[1723385816596,45.50196,151.34,151.26,23.51]
[1723385820307,1.65258514,151.33,151.26,23.51]
[1723385820604,22.1294,151.31,151.24,23.51]
[1723385821107,22.1294,151.31,151.26,23.51]
[1723385821399,15.6355,151.31,151.26,23.51]
[1723385821568,1.65266174,151.3,151.26,23.51]
[1723385821775,15.6355,151.31,151.24,23.51]
[1723385822700,15.6355,151.31,151.2,23.51]
[1723385822701,15.6355,151.31,151.26,23.51]
[1723385823608,15.6355,151.31,151.28,23.51]
[1723385826281,6.4939,151.34,151.28,23.51]
[1723385826616,35.6355,151.35,151.28,23.51]
[1723385826617,15.6355,151.35,151.32,23.51]
[1723385827611,16.5364,151.39,151.34,23.51]
[1723385827787,16.5364,151.39,151.37,23.51]
[1723385828671,6.2608,151.43,151.37,23.51]
[1723385828882,16.5364,151.44,151.39,23.51]
[1723385829413,1.6512715,151.43,151.36,23.51]
[1723385829593,18.18786686,151.44,151.38,23.51]
[1723385829918,16.5364,151.44,151.38,23.51]
[1723385830277,16.5364,151.44,151.42,23.51]
[1723385830600,16.5364,151.48,151.42,23.51]
[1723385830803,16.5364,151.48,151.45,23.51]
[1723385832174,1.65073659,151.47,151.41,23.51]
[1723385832402,1.65073659,151.47,151.39,23.51]
[1723385832580,30.28514141,151.46,151.37,23.51]
[1723385832781,46.65130699,151.45,151.37,23.51]
[1723385833077,45.0,151.45,151.37,23.51]
[1723385834278,1.77686594,151.44,151.37,23.51]
[1723385834495,46.77686594,151.44,151.35,23.51]
[1723385834680,45.12549,151.44,151.37,23.51]
[1723385834993,45.0,151.44,151.37,23.51]
[1723385835205,6.2608,151.45,151.39,23.51]
[1723385835401,6.2608,151.45,151.37,23.51]
[1723385835604,46.90245774,151.44,151.37,23.51]
[1723385835905,46.90245774,151.44,151.33,6.5802]
[1723385835906,16.5364,151.43,151.35,23.51]
[1723385836212,1.65147679,151.42,151.35,23.51]
[1723385837787,16.5364,151.43,151.35,23.51]
[1723385838418,1.65146362,151.42,151.35,23.51]
[1723385838921,46.65146362,151.42,151.35,23.51]
[1723385839221,16.5364,151.43,151.39,23.51]
[1723385841509,16.5364,151.47,151.41,23.51]
[1723385841711,20.0,151.46,151.41,23.51]
[1723385843527,20.0,151.46,151.39,23.51]
[1723385843731,6.88946996,151.45,151.39,23.51]
[1723385844028,1.65120246,151.44,151.37,23.51]
[1723385844235,45.0,151.45,151.37,23.51]
[1723385845515,20.0,151.46,151.39,23.51]
[1723385847202,20.0,151.46,151.36,23.51]
[1723385847203,20.0,151.46,151.41,23.51]
[1723385847843,20.0,151.46,151.39,23.51]
[1723385848044,20.0,151.46,151.41,23.51]
[1723385848540,16.5364,151.47,151.41,23.51]
[1723385848708,16.4807,151.51,151.43,23.51]
[1723385849115,21.1009,151.51,151.43,23.51]
[1723385849431,4.621,151.48,151.41,23.51]
[1723385849931,4.6214,151.47,151.39,23.51]
[1723385850106,24.621,151.48,151.39,23.51]
[1723385850311,20.0,151.48,151.41,23.51]
[1723385850830,39.9907,151.51,151.43,23.51]
[1723385851139,16.4807,151.51,151.44,23.51]
[1723385853946,49.6205,151.5,151.41,23.51]
[1723385854145,49.6205,151.5,151.4,0.12549]
[1723385854146,45.0,151.5,151.43,23.51]
[1723385854309,16.4807,151.51,151.43,23.51]
[1723385854517,20.0,151.5,151.43,23.51]
[1723385855026,4.6213,151.48,151.41,23.51]
[1723385855240,45.12549,151.47,151.39,23.51]
[1723385855429,49.87238,151.47,151.39,23.51]
[1723385855621,45.25098,151.47,151.39,23.51]
[1723385856446,4.6217,151.46,151.37,23.51]
[1723385857316,73.38238,151.47,151.37,23.51]
[1723385857734,20.0,151.48,151.39,23.51]
[1723385858338,21.65097462,151.48,151.39,23.51]
[1723385858642,20.0,151.48,151.41,23.51]
[1723385858945,24.6205,151.5,151.41,23.51]
[1723385859654,49.6207,151.49,151.41,23.51]
[1723385859852,20.0,151.48,151.41,23.51]
[1723385861241,49.6207,151.49,151.41,23.51]
[1723385861242,45.0,151.49,151.41,23.51]
[1723385861436,40.24168,151.51,151.41,23.51]
[1723385861743,45.25098,151.5,151.41,23.51]
[1723385862137,1.6508038,151.49,151.41,23.51]
[1723385862330,49.87138,151.5,151.41,23.51]
[1723385862727,4.6208,151.49,151.41,23.51]
[1723385862927,49.87138,151.5,151.41,23.51]
[1723385863730,4.74659,151.48,151.39,23.51]
[1723385863941,45.0,151.47,151.39,23.51]
[1723385864355,45.0,151.48,151.39,23.51]
[1723385865553,45.0,151.48,151.41,23.51]
[1723385867052,45.0,151.49,151.41,23.51]
[1723385867248,45.25098,151.5,151.41,23.51]
[1723385867465,20.0,151.49,151.41,23.51]
[1723385868142,20.0,151.5,151.43,23.51]
[1723385869257,28.1295,151.53,151.43,23.51]
[1723385869462,16.4765,151.54,151.45,23.51]
[1723385869639,16.4765,151.54,151.47,23.51]
[1723385870038,21.0958,151.54,151.47,23.51]
[1723385870345,4.6196,151.53,151.45,23.51]
[1723385870852,24.6196,151.53,151.45,23.51]
[1723385871737,49.6199,151.52,151.43,23.51]
[1723385871939,23.51,151.51,151.43,23.51]
[1723385873062,45.0,151.52,151.43,23.51]
[1723385873444,45.0,151.52,151.45,23.51]
[1723385873649,20.0,151.53,151.45,23.51]
[1723385875464,16.4765,151.54,151.47,23.51]
[1723385878369,6.2547,151.57,151.49,23.51]
[1723385878541,16.4765,151.58,151.49,23.51]
[1723385882183,16.4765,151.58,151.51,23.51]
[1723385882350,29.7647,151.61,151.51,23.51]
[1723385882677,16.4765,151.62,151.53,23.51]
[1723385883352,16.4765,151.62,151.55,23.51]
[1723385883550,4.6162,151.64,151.55,29.8896]
[1723385883954,4.6178,151.59,151.52,15.3788]
[1723385884179,6.2677225,151.58,151.51,6.3796]
[1723385884473,44.6043,151.59,151.51,6.3796]
[1723385885049,45.0,151.58,151.51,6.3796]
[1723385885246,16.4765,151.59,151.51,29.8896]
[1723385885549,46.25386689,151.59,151.51,29.8896]
[1723385885751,46.25386689,151.59,151.51,6.3796]
[1723385886253,46.25386689,151.59,151.48,15.3788]
[1723385886254,23.51,151.57,151.48,15.3788]
[1723385886886,16.4765,151.59,151.51,23.51]
[1723385887948,23.51,151.55,151.48,15.3788]
[1723385888148,23.51,151.57,151.48,15.3788]
[1723385888457,23.51,151.57,151.48,38.8888]
[1723385888651,28.1283,151.57,151.48,38.8888]
[1723385888893,23.51,151.55,151.47,6.3796]
[1723385889074,1.65015648,151.54,151.47,6.3796]
[1723385889380,23.51,151.53,151.44,39.7441]
[1723385889678,1.65042077,151.52,151.44,39.7441]
[1723385889884,23.51,151.53,151.44,39.7441]
[1723385890181,23.51,151.55,151.46,23.51]
[1723385890350,45.0,151.56,151.48,23.51]
[1723385890552,0.12549,151.58,151.48,23.51]
[1723385890762,45.25098,151.58,151.48,23.51]
[1723385890969,45.0,151.58,151.5,23.51]
[1723385891184,16.4765,151.59,151.52,23.51]
[1723385891404,1.64971157,151.58,151.5,29.7358]
[1723385891573,39.9865,151.59,151.5,29.7358]
[1723385891957,16.4765,151.59,151.51,0.12549]
[1723385892288,5.97000652,151.62,151.54,23.51]
[1723385892476,38.8836,151.63,151.54,23.51]
[1723385893788,1.64939124,151.62,151.54,23.51]
[1723385893957,38.8836,151.63,151.54,23.51]
[1723385894587,20.0,151.62,151.54,23.51]
[1723385894774,4.6174,151.6,151.52,23.51]
[1723385894978,70.15981614,151.59,151.51,16.2341]
[1723385895182,43.76098,151.58,151.5,6.2258]
[1723385895380,23.51,151.56,151.47,16.2341]
[1723385895968,54.17908,151.58,151.47,45.5441]
[1723385896185,45.0,151.57,151.47,45.5441]
[1723385896564,1.64996437,151.56,151.47,45.5441]
[1723385896887,1.64998464,151.55,151.47,45.5441]
[1723385897068,1.65017135,151.54,151.47,45.5441]
[1723385898064,45.0,151.57,151.47,45.5441]
[1723385898259,46.65013304,151.57,151.47,45.5441]
[1723385898594,49.56098,151.58,151.49,29.31]
[1723385898595,20.12549,151.58,151.49,29.31]
[1723385898925,20.12549,151.59,151.49,29.31]
[1723385899084,45.0,151.58,151.49,29.31]
[1723385899470,20.0,151.59,151.5,0.50196]
[1723385899674,20.0,151.59,151.51,29.31]
[1723385899876,20.0,151.6,151.51,29.31]
[1723385900672,1.64962439,151.59,151.51,29.31]
[1723385901300,4.6186,151.56,151.47,45.5441]
[1723385901596,1.65014927,151.55,151.47,45.5441]
[1723385901761,20.0,151.57,151.47,45.5441]
[1723385902473,20.0,151.57,151.48,0.12549]
[1723385902688,21.64989909,151.57,151.48,0.37647]
[1723385903097,21.64986707,151.59,151.49,29.31]
[1723385903395,20.0,151.59,151.51,29.31]
[1723385903575,20.0,151.59,151.49,29.31]
[1723385903576,1.64969019,151.58,151.49,29.31]
[1723385903898,1.6498761,151.57,151.49,29.31]
[1723385904065,45.0,151.58,151.48,0.37647]
[1723385904263,1.64991614,151.57,151.48,20.25098]
[1723385904493,1.6499447,151.57,151.48,20.0]
[1723385904690,79.05349,151.58,151.47,45.5441]
[1723385904882,0.25098,151.57,151.47,45.5441]
[1723385905274,29.31,151.58,151.48,0.25098]
[1723385905481,20.0,151.59,151.49,29.43549]
[1723385906195,1.64980016,151.58,151.49,29.43549]
[1723385906415,20.0,151.59,151.49,29.43549]
[1723385907593,20.0,151.59,151.5,0.12549]
[1723385909405,20.0,151.59,151.5,0.25098]
[1723385910103,20.0,151.59,151.51,29.31]
[1723385910305,20.0,151.6,151.51,29.31]
[1723385911500,20.0,151.6,151.52,0.12549]
[1723385911715,20.0,151.6,151.52,0.25098]
[1723385911890,5.97000652,151.61,151.52,6.63718]
[1723385912095,15.3736,151.63,151.55,29.31]
[1723385918043,15.3736,151.63,151.55,23.42]
[1723385919616,0.8246587,151.65,151.57,23.42]
[1723385920723,0.8246587,151.65,151.58,0.12549]
[1723385921017,0.8246587,151.65,151.59,29.8062]
[1723385921198,1.64889488,151.64,151.59,29.8062]
[1723385921703,1.64889488,151.64,151.57,23.42]
[1723385922900,1.64891727,151.63,151.57,23.42]
[1723385923102,1.64891727,151.63,151.53,40.016]
[1723385923302,23.42,151.64,151.55,23.42]
[1723385923704,20.8246587,151.65,151.57,23.42]
[1723385924412,0.8246587,151.65,151.57,23.42]
[1723385924721,2.47367201,151.65,151.57,23.42]
[1723385925529,2.47367201,151.65,151.58,0.12549]
[1723385925530,1.64900112,151.64,151.58,0.12549]
[1723385925824,0.8246587,151.65,151.57,23.42]
[1723385926121,0.8246587,151.65,151.59,23.42]
[1723385926521,1.64890874,151.64,151.57,0.12549]
[1723385926705,1.64890874,151.64,151.57,23.79647]
[1723385927017,0.8246587,151.65,151.59,23.42]
[1723385929728,1.64883394,151.64,151.57,23.67098]
[1723385929900,1.64883394,151.64,151.57,23.42]
[1723385930218,25.06883394,151.64,151.55,23.42]
[1723385930410,70.06883394,151.64,151.55,23.42]
[1723385930922,1.64929416,151.63,151.53,40.016]
[1723385931300,1.64929416,151.63,151.55,23.42]
[1723385931511,45.0,151.64,151.55,23.42]
[1723385931713,46.64922499,151.64,151.55,23.42]
[1723385932899,24.3701487,151.65,151.54,0.12549]
[1723385932900,0.8246587,151.65,151.57,23.42]
[1723385933231,2.47362602,151.65,151.57,23.42]
[1723385933526,0.8246587,151.65,151.57,23.42]
[1723385935621,1.64896726,151.64,151.57,23.42]
[1723385938427,0.8246587,151.65,151.57,23.42]
[1723385938923,1.64898711,151.64,151.57,23.42]
[1723385940419,0.8246587,151.65,151.57,23.42]
[1723385941433,2.47366396,151.65,151.57,23.42]
[1723385942915,0.8246587,151.65,151.59,23.42]
[1723385943536,1.6488807,151.64,151.59,23.42]
[1723385943739,0.8246587,151.65,151.59,23.42]
[1723385945617,1.64907233,151.64,151.57,23.42]
[1723385945820,0.8246587,151.65,151.59,23.42]
[1723385946035,0.8246587,151.65,151.61,23.42]
[1723385946219,0.8246587,151.65,151.63,23.42]
[1723385947212,0.8246587,151.65,151.61,23.42]
[1723385948123,0.8246587,151.65,151.63,23.42]
[1723385949631,0.8246587,151.65,151.59,29.8211]
[1723385949835,0.8246587,151.65,151.59,23.42]
[1723385950531,30.0,151.61,151.59,23.42]
[1723385951458,0.8246587,151.65,151.59,23.42]
[1723385951745,0.8246587,151.65,151.61,23.42]
[1723385952540,0.8246587,151.65,151.62,0.12549]
[1723385952723,0.8246587,151.65,151.62,0.25098]
[1723385952926,0.8246587,151.65,151.61,23.42]
[1723385953625,0.8246587,151.65,151.62,0.25098]
[1723385953821,0.8246587,151.65,151.56,15.039]
[1723385954024,0.8246587,151.65,151.6,23.42]
[1723385955840,0.8246587,151.65,151.62,23.42]
[1723385958851,0.8246587,151.65,151.64,23.42]
[1723385960729,0.8246587,151.65,151.62,23.42]
[1723385961248,0.8246587,151.65,151.59,23.42]
[1723385961456,0.8246587,151.65,151.6,20.0]
[1723385962054,0.8246587,151.65,151.61,23.42]
[1723385962240,0.8246587,151.65,151.6,20.0]
[1723385962553,0.8246587,151.65,151.61,23.42]
[1723385965337,0.8246587,151.65,151.63,23.42]
[1723385967873,15.4582,151.71,151.64,0.12549]
[1723385968153,15.4582,151.71,151.68,23.42]
[1723385970445,15.6166,151.76,151.68,23.42]
[1723385971533,1.6479129,151.75,151.68,23.42]
[1723385972151,15.6166,151.76,151.68,23.42]
[1723385972360,1.64790684,151.75,151.68,23.42]
[1723385973264,1.64790684,151.75,151.62,16.4899]
[1723385973265,1.64800695,151.74,151.66,23.42]
[1723385973447,23.42,151.71,151.62,23.42]
[1723385973633,39.28758,151.73,151.64,23.42]
[1723385974003,39.28758,151.73,151.68,23.42]
[1723385974004,15.6166,151.73,151.68,23.42]
[1723385977964,15.6166,151.73,151.7,11.69]
[1723385978363,15.6166,151.73,151.71,11.69]
[1723385978557,6.0441,151.77,151.71,11.69]
[1723385978558,21.6607,151.77,151.71,11.69]
[1723385979247,45.0,151.76,151.65,0.12549]
[1723385979452,58.33788733,151.76,151.69,11.69]
[1723385979964,27.3066,151.71,151.61,6.0839]
[1723385980167,13.33844649,151.7,151.63,11.69]
[1723385980554,11.69,151.69,151.61,6.0839]
[1723385980856,1.64861578,151.69,151.62,11.69]
[1723385981064,30.0,151.68,151.61,11.69]
[1723385981255,13.33863806,151.68,151.61,11.69]
[1723385981678,27.3066,151.64,151.52,22.5738]
[1723385981975,15.6166,151.64,151.57,23.42]
[1723385984962,1.6491597,151.63,151.55,23.42]
[1723385985156,6.0441,151.62,151.53,23.42]
[1723385985354,6.0441,151.62,151.52,6.0839]
[1723385985557,15.6166,151.64,151.57,23.42]
[1723385986880,15.6166,151.64,151.59,23.42]
[1723385987262,6.0441,151.66,151.61,23.42]
[1723385988081,15.0798,151.68,151.61,23.42]
[1723385988381,15.0798,151.68,151.59,23.42]
[1723385988382,1.64875428,151.67,151.59,23.42]
[1723385989373,45.0,151.67,151.59,23.42]
[1723385989575,46.64895227,151.67,151.59,23.42]
[1723385990069,0.12549,151.66,151.59,23.42]
[1723385990469,1.6490157,151.66,151.59,23.42]
[1723385990659,0.12549,151.65,151.55,23.42]
[1723385990859,0.12549,151.65,151.56,20.0]
[1723385990860,44.8597,151.64,151.56,20.0]
[1723385991079,46.9004177,151.63,151.55,23.42]
[1723385991286,46.9004177,151.63,151.53,23.42]
[1723385991658,45.25098,151.63,151.53,23.42]
[1723385991975,45.0,151.63,151.55,23.42]
[1723385992185,21.4397,151.64,151.55,23.42]
[1723385992771,46.90036617,151.63,151.55,23.42]
[1723385993100,45.0,151.63,151.55,23.42]
[1723385993302,21.4397,151.64,151.55,23.42]
[1723385993690,21.4397,151.64,151.57,23.42]
[1723385996803,15.0798,151.64,151.57,23.42]
[1723385997006,15.0798,151.64,151.59,23.42]
[1723385998582,21.4397,151.68,151.59,23.42]
[1723385998782,21.4397,151.68,151.61,23.42]
[1723385999397,21.4397,151.68,151.63,23.42]
[1723385999613,15.0798,151.68,151.6,0.12549]
[1723385999787,15.0798,151.68,151.62,23.42]
[1723386000493,21.4397,151.72,151.66,23.42]
[1723386000697,15.0798,151.72,151.68,23.42]
[1723386001093,15.0798,151.72,151.66,23.42]
[1723386001314,1.64837107,151.71,151.64,23.42]
[1723386001499,1.64850142,151.7,151.62,23.42]
[1723386002007,15.0798,151.72,151.64,23.42]
[1723386002314,45.0,151.71,151.64,23.42]
[1723386002515,1.64844433,151.7,151.6,15.37459]
[1723386002817,45.0,151.71,151.62,23.42]
[1723386004192,28.035,151.68,151.58,23.42]
[1723386004489,23.42,151.68,151.58,23.42]
[1723386004811,1.64875117,151.67,151.58,23.42]
[1723386005021,23.42,151.68,151.58,23.42]
[1723386005194,45.0,151.67,151.58,23.42]
[1723386006196,15.20529,151.69,151.6,23.42]
[1723386006404,15.0798,151.69,151.66,23.42]
[1723386006609,15.0798,151.73,151.62,6.2185]
[1723386006924,15.0798,151.73,151.68,23.42]
[1723386008392,15.0798,151.73,151.67,0.12549]
[1723386008616,15.0798,151.73,151.67,23.42]
[1723386008924,15.0798,151.73,151.69,23.42]
[1723386009722,15.0798,151.73,151.67,23.42]
[1723386010090,15.0798,151.73,151.69,23.42]
[1723386013415,15.0798,151.73,151.67,23.42]
[1723386014594,15.0798,151.73,151.69,23.42]
[1723386015496,15.0798,151.73,151.67,23.42]
[1723386017694,1.64816559,151.72,151.67,23.42]
[1723386017890,15.0798,151.73,151.67,23.42]
[1723386018508,1.64822599,151.72,151.63,23.42]
[1723386018715,6.38289,151.71,151.61,23.42]
[1723386018906,15.0653,151.69,151.61,23.42]
[1723386019321,45.0,151.68,151.61,23.42]
[1723386019707,68.42,151.68,151.59,23.42]
[1723386019917,6.2574,151.64,151.52,15.5816]
[1723386020217,6.2574,151.64,151.57,23.42]
[1723386020811,45.0,151.63,151.57,23.42]
[1723386021005,45.0,151.63,151.5,6.4309]
[1723386021218,25.44578297,151.62,151.52,23.42]
[1723386021423,23.42,151.6,151.47,10.3262912]
[1723386021598,0.25098,151.59,151.49,23.42]
[1723386021897,15.0653,151.61,151.55,23.42]
[1723386022101,15.0653,151.61,151.57,23.42]
[1723386023323,15.0653,151.61,151.59,23.42]
[1723386023518,15.0653,151.65,151.59,23.42]
[1723386025806,40.13439015,151.65,151.57,23.42]
[1723386026004,45.0,151.63,151.55,23.42]
[1723386026223,0.12549,151.62,151.55,23.42]
[1723386026829,1.90045168,151.62,151.53,23.42]
[1723386027027,39.35309,151.61,151.51,23.42]
[1723386027328,47.02633324,151.6,151.51,23.42]
[1723386027626,0.12549,151.59,151.51,23.42]
[1723386027829,23.54549,151.59,151.49,23.42]
[1723386027999,6.0096,151.56,151.49,23.42]
[1723386028201,6.0096,151.56,151.47,23.42]
[1723386028505,45.0,151.55,151.47,23.42]
[1723386028709,17.45780649,151.54,151.45,23.42]
[1723386028903,17.58329649,151.54,151.45,23.42]
[1723386029101,45.12549,151.53,151.45,23.42]
[1723386030339,15.8076,151.54,151.47,23.42]
[1723386030523,15.8076,151.54,151.49,23.42]
[1723386031334,15.8076,151.54,151.51,23.42]
[1723386031547,15.8076,151.54,151.44,23.42]
[1723386031548,15.8076,151.58,151.53,23.42]
[1723386033951,15.8076,151.58,151.52,29.29]
[1723386034740,15.8076,151.58,151.54,29.29]
[1723386034918,15.8076,151.63,151.56,29.29]
[1723386035434,15.8076,151.63,151.58,29.29]
[1723386035842,15.8076,151.63,151.56,29.29]
[1723386037047,15.8076,151.63,151.54,29.29]
[1723386037244,1.64946237,151.62,151.52,29.29]
[1723386037749,46.64946237,151.62,151.52,29.29]
[1723386037929,45.0,151.62,151.52,29.29]
[1723386040526,0.12549,151.61,151.52,29.29]
[1723386041248,0.12549,151.6,151.5,29.29]
[1723386041561,15.8076,151.59,151.5,29.29]
[1723386041730,46.77544272,151.58,151.5,29.29]
[1723386042051,45.12549,151.58,151.5,29.29]
[1723386044729,45.12549,151.58,151.44,45.1071]
[1723386044730,1.64997799,151.57,151.48,29.41549]
[1723386045152,6.0096,151.57,151.48,29.41549]
[1723386045638,6.0096,151.57,151.48,29.29]
[1723386045836,45.0,151.56,151.48,29.29]
[1723386046024,45.12549,151.56,151.46,29.29]
[1723386046224,45.12549,151.56,151.47,20.0]
[1723386047038,6.0096,151.57,151.52,29.29]
[1723386047338,15.8076,151.59,151.52,29.29]
[1723386047738,15.8076,151.59,151.54,29.29]
[1723386048943,1.64971177,151.58,151.5,29.29]
[1723386049135,45.0,151.58,151.5,29.29]
[1723386049329,15.8076,151.59,151.5,29.29]
[1723386050750,15.8076,151.59,151.52,29.29]
[1723386050957,15.8076,151.59,151.56,29.29]
[1723386051756,15.8076,151.59,151.53,0.12549]
[1723386051757,15.8076,151.59,151.54,29.29]
[1723386054161,15.8076,151.59,151.52,29.29]
[1723386054358,15.8076,151.59,151.53,20.0]
[1723386054860,15.8115,151.63,151.54,29.29]
[1723386055055,15.8115,151.63,151.54,29.41549]
[1723386055730,15.8115,151.63,151.58,29.29]
[1723386055933,15.8115,151.67,151.6,29.29]
[1723386056954,15.8115,151.67,151.62,29.29]
[1723386059137,22.4258,151.73,151.64,29.29]
[1723386060760,45.12549,151.72,151.64,29.29]
[1723386060968,45.12549,151.72,151.51,26.609]
[1723386060969,1.77395562,151.71,151.62,29.29]
[1723386061169,46.77405233,151.72,151.62,29.29]
[1723386061467,45.0,151.72,151.64,29.29]
[1723386062368,0.25098,151.71,151.62,29.29]
[1723386063850,15.8115,151.69,151.6,29.29]
[1723386064550,45.12549,151.68,151.6,29.29]
[1723386064962,6.26403432,151.67,151.58,29.29]
[1723386065144,45.0,151.66,151.58,29.29]
[1723386065737,6.6143,151.67,151.6,29.29]
[1723386068357,6.6143,151.67,151.53,9.2363145]
[1723386068592,6.6143,151.67,151.57,29.29]
[1723386068593,46.64882698,151.66,151.57,29.29]
[1723386068767,1.77452828,151.65,151.55,29.29]
[1723386068968,45.0,151.66,151.55,29.29]
[1723386069189,16.0693,151.65,151.55,29.29]
[1723386069483,49.9752,151.65,151.55,29.29]
[1723386069692,47.02581294,151.64,151.53,29.29]
[1723386069872,45.37647,151.64,151.53,29.29]
[1723386070372,4.6165,151.63,151.53,29.29]
[1723386070571,62.84430271,151.62,151.51,29.29]
[1723386070758,61.0693,151.62,151.53,29.29]
[1723386070964,16.0693,151.62,151.53,29.29]
[1723386072390,16.0693,151.62,151.54,0.25098]
[1723386073659,16.0693,151.62,151.56,29.29]
[1723386073897,16.0693,151.62,151.58,29.29]
[1723386074066,6.6143,151.67,151.6,29.29]
[1723386074067,16.0693,151.66,151.6,29.29]
[1723386075265,16.0693,151.66,151.55,6.3087]
[1723386075266,16.0693,151.66,151.62,29.29]
[1723386076577,16.0693,151.66,151.64,29.29]
[1723386076785,16.0693,151.7,151.64,29.29]
[1723386078502,16.0693,151.7,151.62,29.29]
[1723386078669,4.74049,151.68,151.58,29.29]
[1723386078877,45.12549,151.67,151.58,29.29]
[1723386079184,65.37647,151.69,151.58,29.29]
[1723386079384,65.25098,151.69,151.6,29.29]
[1723386079981,16.0693,151.67,151.54,2.6782968]
[1723386080306,102.72764618,151.66,151.55,29.29]
[1723386081380,107.34324618,151.66,151.55,29.29]
[1723386081596,16.0693,151.64,151.55,29.29]
[1723386081906,46.64930828,151.63,151.55,29.29]
[1723386082100,45.0,151.63,151.55,29.29]
[1723386083805,46.64935995,151.63,151.55,29.29]
[1723386084107,45.0,151.63,151.55,29.29]
[1723386084278,0.12549,151.62,151.55,29.29]
[1723386085287,45.0,151.63,151.55,29.29]
[1723386085796,0.12549,151.62,151.55,29.29]
[1723386086496,45.0,151.63,151.55,29.29]
[1723386087080,0.12549,151.62,151.55,29.29]
[1723386088008,16.0693,151.64,151.55,29.29]
[1723386088506,16.0693,151.64,151.57,29.29]
[1723386088709,16.0693,151.64,151.59,29.29]
[1723386092290,1.64897636,151.63,151.57,29.29]
[1723386092597,17.71837564,151.64,151.57,29.29]
[1723386092995,17.71837564,151.64,151.55,29.29]
[1723386093303,16.0693,151.64,151.55,29.29]
[1723386093678,16.0693,151.64,151.57,29.29]
[1723386094283,46.64927143,151.63,151.55,29.29]
[1723386095111,45.0,151.63,151.55,29.29]
[1723386095290,16.0693,151.64,151.57,29.29]
[1723386096186,16.0693,151.64,151.59,29.29]
[1723386098114,15.4786,151.69,151.63,29.29]
[1723386098796,15.4786,151.69,151.61,29.29]
[1723386098997,15.4786,151.69,151.63,29.29]
[1723386103216,15.4786,151.73,151.67,29.29]
[1723386103520,15.4786,151.73,151.65,29.29]
[1723386104013,17.12682203,151.73,151.65,29.29]
[1723386104391,15.4786,151.73,151.65,29.29]
[1723386105902,15.4786,151.73,151.66,23.39]
[1723386109922,15.4786,151.73,151.68,23.39]
[1723386112302,15.4786,151.73,151.7,23.39]